fUST/lending_fUST_20240919
["ID","MTS","AMOUNT","RATE_DAILY","PERIOD"]
[338577622,1726744241400,-500.0,0.00016438,2]
[338577623,1726744241410,-500.0,0.00016438,2]
[338577624,1726744241420,-500.0,0.00016438,2]
[338577625,1726744241430,-500.0,0.00016438,2]
[338577626,1726744241439,-500.0,0.00016438,2]
[338577627,1726744241450,-500.0,0.00016438,2]
[338577628,1726744241460,-500.0,0.00016438,2]
[338577629,1726744241471,-836.11,0.00016438,2]
[338577630,1726744241485,-500.0,0.00016438,2]
[338577631,1726744241496,-500.0,0.00016438,2]
[338577632,1726744241505,-853.99,0.00016438,2]
[338577633,1726744241515,-500.0,0.00016438,2]
[338577634,1726744241524,-502.15426556,0.00016438,2]
[338577635,1726744241533,-500.0,0.00016438,2]
[338577636,1726744241543,-500.0,0.00016438,2]
[338577637,1726744241552,-284.3827466,0.00016438,2]
[338577638,1726744241561,-675.18,0.00016438,2]
[338577639,1726744241570,-500.0,0.00016438,2]
[338577640,1726744241579,-500.0,0.00016438,2]
[338577641,1726744241589,-500.0,0.00016438,2]
[338577642,1726744241600,-500.0,0.00016438,2]
[338577643,1726744241610,-500.0,0.00016438,2]
[338577644,1726744241620,-1310.01,0.00016438,2]
[338577645,1726744241629,-500.0,0.00016438,2]
[338577646,1726744241638,-2127.01,0.00016438,2]
[338577647,1726744241648,-500.0,0.00016438,2]
[338577648,1726744241657,-822.84,0.00016438,2]
[338577649,1726744241667,-803.21,0.00016438,2]
[338577650,1726744241676,-500.0,0.00016438,2]
[338577651,1726744241686,-500.0,0.00016438,2]
[338577652,1726744241696,-1475.14,0.00016438,2]
[338577653,1726744241706,-500.0,0.00016438,2]
[338577654,1726744241715,-501.606519,0.00016438,2]
[338577655,1726744241728,-500.0,0.00016438,2]
[338577656,1726744241738,-500.0,0.00016438,2]
[338577657,1726744241747,-500.0,0.00016438,2]
[338577658,1726744241756,-573.25,0.00016438,2]
[338577659,1726744241766,-1077.41,0.00016438,2]
[338577660,1726744241775,-500.0,0.00016438,2]
[338577661,1726744241785,-500.0,0.00016438,2]
[338577662,1726744241794,-501.83540582,0.00016438,2]
[338577663,1726744241804,-1496.67,0.00016438,2]
[338577664,1726744241814,-500.0,0.00016438,2]
[338577665,1726744241823,-500.0,0.00016438,2]
[338577666,1726744241833,-500.0,0.00016438,2]
[338577667,1726744241843,-500.0,0.00016438,2]
[338577668,1726744241853,-500.0,0.00016438,2]
[338577669,1726744241862,-500.0,0.00016438,2]
[338577670,1726744241872,-725.44,0.00016438,2]
[338577671,1726744241882,-355.7588151,0.00016438,2]
[338577672,1726744241893,-500.0,0.00016438,2]
[338577673,1726744241903,-833.49,0.00016438,2]
[338577674,1726744241914,-500.0,0.00016438,2]
[338577675,1726744241924,-500.0,0.00016438,2]
[338577676,1726744241936,-500.0,0.00016438,2]
[338577677,1726744241947,-500.0,0.00016438,2]
[338577678,1726744241957,-1223.46,0.00016438,2]
[338577679,1726744241967,-500.0,0.00016438,2]
[338577680,1726744241977,-709.18,0.00016438,2]
[338577681,1726744241986,-500.0,0.00016438,2]
[338577682,1726744241996,-500.0,0.00016438,2]
[338577683,1726744242007,-500.0,0.00016438,2]
[338577684,1726744242016,-500.0,0.00016438,2]
[338577685,1726744242026,-500.0,0.00016438,2]
[338577686,1726744242035,-500.0,0.00016438,2]
[338577687,1726744242045,-500.0,0.00016438,2]
[338577688,1726744242054,-500.0,0.00016438,2]
[338577689,1726744242064,-500.0,0.00016438,2]
[338577690,1726744242074,-500.0,0.00016438,2]
[338577691,1726744242084,-1157.23,0.00016438,2]
[338577692,1726744242093,-632.07,0.00016438,2]
[338577693,1726744242102,-500.0,0.00016438,2]
[338577694,1726744242112,-500.0,0.00016438,2]
[338577695,1726744242123,-2306.19,0.00016438,2]
[338577696,1726744242134,-500.0,0.00016438,2]
[338577697,1726744242143,-807.9,0.00016438,2]
[338577698,1726744242153,-500.0,0.00016438,2]
[338577699,1726744242162,-500.0,0.00016438,2]
[338577700,1726744242172,-500.0,0.00016438,2]
[338577701,1726744242182,-500.0,0.00016438,2]
[338577702,1726744242191,-500.0,0.00016438,2]
[338577703,1726744242201,-500.0,0.00016438,2]
[338577704,1726744242211,-500.0,0.00016438,2]
[338577705,1726744242220,-709.3,0.00016438,2]
[338577706,1726744242230,-948.1,0.00016438,2]
[338577707,1726744242239,-500.0,0.00016438,2]
[338577708,1726744242249,-745.79,0.00016438,2]
[338577709,1726744242258,-508.16,0.00016438,2]
[338577710,1726744242268,-535.25,0.00016438,2]
[338577711,1726744242277,-315.86501001,0.00016438,2]
[338577712,1726744242287,-1424.5,0.00016438,2]
[338577713,1726744242297,-500.0,0.00016438,2]
[338577714,1726744242307,-674.0,0.00016438,2]
[338577715,1726744242316,-500.0,0.00016438,2]
[338577716,1726744242326,-2407.99,0.00016438,2]
[338577717,1726744242336,-500.0,0.00016438,2]
[338577718,1726744242346,-500.0,0.00016438,2]
[338577719,1726744242356,-1114.26,0.00016438,2]
[338577720,1726744242365,-500.0,0.00016438,2]
[338577721,1726744242375,-500.0,0.00016438,2]
[338577722,1726744242385,-555.09,0.00016438,2]
[338577723,1726744242395,-564.23070744,0.00016438,2]
[338577724,1726744242404,-653.53,0.00016438,2]
[338577725,1726744242413,-500.0,0.00016438,2]
[338577726,1726744242423,-500.0,0.00016438,2]
[338577727,1726744242433,-539.28773051,0.00016438,2]
[338577728,1726744242442,-500.0,0.00016438,2]
[338577729,1726744242452,-500.0,0.00016438,2]
[338577730,1726744242462,-725.95,0.00016438,2]
[338577731,1726744242472,-500.0,0.00016438,2]
[338577732,1726744242482,-547.42,0.00016438,2]
[338577733,1726744242492,-500.0,0.00016438,2]
[338577734,1726744242501,-500.0,0.00016438,2]
[338577735,1726744242511,-500.0,0.00016438,2]
[338577736,1726744242521,-552.61,0.00016438,2]
[338577737,1726744242530,-656.31,0.00016438,2]
[338577738,1726744242540,-1041.25,0.00016438,2]
[338577739,1726744242549,-500.0,0.00016438,2]
[338577740,1726744242558,-500.0,0.00016438,2]
[338577741,1726744242568,-500.0,0.00016438,2]
[338577742,1726744242578,-1586.59,0.00016438,2]
[338577743,1726744242588,-500.0,0.00016438,2]
[338577744,1726744242597,-500.0,0.00016438,2]
[338577745,1726744242607,-525.3,0.00016438,2]
[338577746,1726744242617,-500.0,0.00016438,2]
[338577747,1726744242626,-501.35330466,0.00016438,2]
[338577748,1726744242636,-415.07825703,0.00016438,2]
[338577749,1726744242646,-500.0,0.00016438,2]
[338577750,1726744242655,-500.0,0.00016438,2]
[338577751,1726744242664,-500.0,0.00016438,2]
[338577752,1726744242674,-500.0,0.00016438,2]
[338577753,1726744242683,-500.0,0.00016438,2]
[338577754,1726744242693,-500.0,0.00016438,2]
[338577755,1726744242703,-500.0,0.00016438,2]
[338577757,1726744242715,-500.0,0.00016438,2]
[338577759,1726744242725,-500.0,0.00016438,2]
[338577761,1726744242736,-794.82,0.00016438,2]
[338577763,1726744242748,-500.0,0.00016438,2]
[338577764,1726744242759,-500.0,0.00016438,2]
[338577765,1726744242769,-500.0,0.00016438,2]
[338577767,1726744242780,-500.0,0.00016438,2]
[338577768,1726744242789,-488.4,0.00016438,2]
[338577769,1726744242801,-500.0,0.00016438,2]
[338577770,1726744242811,-500.0,0.00016438,2]
[338577771,1726744242820,-500.0,0.00016438,2]
[338577772,1726744242830,-500.0,0.00016438,2]
[338577773,1726744242839,-500.0,0.00016438,2]
[338577775,1726744242849,-500.0,0.00016438,2]
[338577777,1726744242858,-1762.76,0.00016438,2]
[338577778,1726744242867,-500.0,0.00016438,2]
[338577779,1726744242878,-500.0,0.00016438,2]
[338577780,1726744242888,-500.0,0.00016438,2]
[338577781,1726744242897,-500.0,0.00016438,2]
[338577782,1726744242906,-500.0,0.00016438,2]
[338577783,1726744242916,-500.0,0.00016438,2]
[338577784,1726744242926,-681.05,0.00016438,2]
[338577785,1726744242936,-500.0,0.00016438,2]
[338577786,1726744242945,-1202.85,0.00016438,2]
[338577787,1726744242955,-500.0,0.00016438,2]
[338577789,1726744242965,-500.0,0.00016438,2]
[338577791,1726744242975,-823.81,0.00016438,2]
[338577793,1726744242984,-500.0,0.00016438,2]
[338577795,1726744242994,-500.0,0.00016438,2]
[338577796,1726744243003,-500.0,0.00016438,2]
[338577798,1726744243013,-500.0,0.00016438,2]
[338577800,1726744243023,-575.29,0.00016438,2]
[338577802,1726744243036,-1110.4,0.00016438,2]
[338577804,1726744243046,-500.0,0.00016438,2]
[338577806,1726744243056,-783.26,0.00016438,2]
[338577807,1726744243066,-500.0,0.00016438,2]
[338577809,1726744243076,-500.0,0.00016438,2]
[338577811,1726744243086,-698.79,0.00016438,2]
[338577813,1726744243095,-500.0,0.00016438,2]
[338577815,1726744243104,-737.23,0.00016438,2]
[338577817,1726744243114,-1801.48,0.00016438,2]
[338577818,1726744243125,-500.0,0.00016438,2]
[338577820,1726744243136,-500.0,0.00016438,2]
[338577822,1726744243145,-500.0,0.00016438,2]
[338577823,1726744243155,-500.0,0.00016438,2]
[338577825,1726744243165,-500.0,0.00016438,2]
[338577826,1726744243175,-500.0,0.00016438,2]
[338577828,1726744243186,-633.45,0.00016438,2]
[338577830,1726744243195,-924.6,0.00016438,2]
[338577832,1726744243206,-681.45,0.00016438,2]
[338577833,1726744243216,-2764.48,0.00016438,2]
[338577835,1726744243226,-500.0,0.00016438,2]
[338577837,1726744243236,-500.0,0.00016438,2]
[338577839,1726744243246,-500.0,0.00016438,2]
[338577840,1726744243255,-1507.81,0.00016438,2]
[338577842,1726744243265,-610.53,0.00016438,2]
[338577844,1726744243275,-500.0,0.00016438,2]
[338577845,1726744243284,-500.0,0.00016438,2]
[338577847,1726744243294,-632.92,0.00016438,2]
[338577849,1726744243304,-2324.7,0.00016438,2]
[338577850,1726744243313,-500.0,0.00016438,2]
[338577852,1726744243323,-500.0,0.00016438,2]
[338577854,1726744243332,-752.62,0.00016438,2]
[338577856,1726744243342,-500.0,0.00016438,2]
[338577858,1726744243352,-857.31,0.00016438,2]
[338577859,1726744243361,-500.0,0.00016438,2]
[338577862,1726744243371,-500.0,0.00016438,2]
[338577864,1726744243380,-919.17,0.00016438,2]
[338577866,1726744243390,-500.0,0.00016438,2]
[338577867,1726744243399,-1745.99,0.00016438,2]
[338577869,1726744243408,-500.0,0.00016438,2]
[338577871,1726744243418,-500.0,0.00016438,2]
[338577872,1726744243427,-500.0,0.00016438,2]
[338577873,1726744243437,-500.0,0.00016438,2]
[338577874,1726744243447,-500.0,0.00016438,2]
[338577875,1726744243456,-500.0,0.00016438,2]
[338577876,1726744243466,-510.4,0.00016438,2]
[338577877,1726744243476,-500.0,0.00016438,2]
[338577878,1726744243486,-1541.09,0.00016438,2]
[338577879,1726744243495,-500.0,0.00016438,2]
[338577880,1726744243506,-500.0,0.00016438,2]
[338577881,1726744243515,-500.0,0.00016438,2]
[338577882,1726744243524,-500.0,0.00016438,2]
[338577883,1726744243534,-290.23,0.00016438,2]
[338577884,1726744243544,-925.64,0.00016438,2]
[338577885,1726744243553,-500.0,0.00016438,2]
[338577886,1726744243563,-500.0,0.00016438,2]
[338577887,1726744243572,-500.0,0.00016438,2]
[338577888,1726744243582,-2277.04,0.00016438,2]
[338577889,1726744243592,-500.0,0.00016438,2]
[338577890,1726744243602,-500.0,0.00016438,2]
[338577891,1726744243612,-740.93,0.00016438,2]
[338577892,1726744243622,-500.0,0.00016438,2]
[338577893,1726744243631,-500.0,0.00016438,2]
[338577894,1726744243641,-501.86,0.00016438,2]
[338577895,1726744243651,-1327.19,0.00016438,2]
[338577896,1726744243660,-1640.19,0.00016438,2]
[338577897,1726744243670,-500.0,0.00016438,2]
[338577898,1726744243679,-500.0,0.00016438,2]
[338577899,1726744243689,-1229.81,0.00016438,2]
[338577900,1726744243699,-807.68,0.00016438,2]
[338577901,1726744243708,-500.0,0.00016438,2]
[338577902,1726744243719,-500.0,0.00016438,2]
[338577903,1726744243728,-500.0,0.00016438,2]
[338577904,1726744243738,-939.28,0.00016438,2]
[338577905,1726744243748,-206.19624713,0.00016438,2]
[338577906,1726744243758,-500.0,0.00016438,2]
[338577907,1726744243768,-500.0,0.00016438,2]
[338577908,1726744243778,-1840.12,0.00016438,2]
[338577909,1726744244065,-500.0,0.00016438,2]
[338577910,1726744244075,-500.0,0.00016438,2]
[338577911,1726744244085,-628.02,0.00016438,2]
[338577912,1726744244095,-508.00691781,0.00016438,2]
[338577913,1726744244104,-1998.84,0.00016438,2]
[338577914,1726744244113,-500.0,0.00016438,2]
[338577915,1726744244124,-500.0,0.00016438,2]
[338577916,1726744244134,-1477.6,0.00016438,2]
[338577917,1726744244143,-500.0,0.00016438,2]
[338577918,1726744244153,-500.0,0.00016438,2]
[338577919,1726744244162,-500.0,0.00016438,2]
[338577921,1726744244172,-1353.07,0.00016438,2]
[338577923,1726744244181,-500.0,0.00016438,2]
[338577924,1726744244190,-500.0,0.00016438,2]
[338577926,1726744244199,-874.68,0.00016438,2]
[338577928,1726744244209,-500.0,0.00016438,2]
[338577929,1726744244219,-905.36,0.00016438,2]
[338577931,1726744244228,-500.0,0.00016438,2]
[338577933,1726744244239,-500.0,0.00016438,2]
[338577934,1726744244248,-7318.96,0.00016438,2]
[338577935,1726744244257,-626.72,0.00016438,2]
[338577936,1726744244266,-500.0,0.00016438,2]
[338577937,1726744244276,-500.0,0.00016438,2]
[338577938,1726744244285,-534.86,0.00016438,2]
[338577939,1726744244294,-500.0,0.00016438,2]
[338577940,1726744244303,-775.43,0.00016438,2]
[338577941,1726744244313,-510.98,0.00016438,2]
[338577942,1726744244322,-500.0,0.00016438,2]
[338577943,1726744244332,-500.0,0.00016438,2]
[338577944,1726744244342,-500.0,0.00016438,2]
[338577945,1726744244351,-1753.34,0.00016438,2]
[338577946,1726744244360,-500.0,0.00016438,2]
[338577947,1726744244370,-819.93,0.00016438,2]
[338577948,1726744244379,-500.0,0.00016438,2]
[338577949,1726744244388,-600.1,0.00016438,2]
[338577950,1726744244398,-965.79,0.00016438,2]
[338577951,1726744244408,-500.0,0.00016438,2]
[338577952,1726744244418,-500.0,0.00016438,2]
[338577953,1726744244427,-583.1153585,0.00016438,2]
[338577954,1726744244437,-505.75194683,0.00016438,2]
[338577955,1726744244446,-500.0,0.00016438,2]
[338577956,1726744244456,-1681.27,0.00016438,2]
[338577957,1726744244465,-500.0,0.00016438,2]
[338577958,1726744244476,-569.56190587,0.00016438,2]
[338577959,1726744244485,-500.0,0.00016438,2]
[338577960,1726744244495,-750.57,0.00016438,2]
[338577961,1726744244504,-500.0,0.00016438,2]
[338577962,1726744244513,-500.0,0.00016438,2]
[338577963,1726744244523,-500.0,0.00016438,2]
[338577964,1726744244533,-717.47,0.00016438,2]
[338577965,1726744244542,-500.0,0.00016438,2]
[338577966,1726744244552,-178.9865301,0.00016438,2]
[338577967,1726744244561,-314.54,0.00016438,2]
[338577968,1726744244570,-500.0,0.00016438,2]
[338577969,1726744244581,-500.0,0.00016438,2]
[338577970,1726744244592,-500.0,0.00016438,2]
[338577971,1726744244602,-500.0,0.00016438,2]
[338577972,1726744244612,-1009.5,0.00016438,2]
[338577973,1726744244621,-500.0,0.00016438,2]
[338577974,1726744244630,-500.0,0.00016438,2]
[338577975,1726744244640,-500.0,0.00016438,2]
[338577976,1726744244649,-500.0,0.00016438,2]
[338577977,1726744244659,-214.97556302,0.00016438,2]
[338577978,1726744244668,-487.51416255,0.00016438,2]
[338577979,1726744244678,-500.0,0.00016438,2]
[338577980,1726744244687,-500.0,0.00016438,2]
[338577981,1726744244697,-500.0,0.00016438,2]
[338577982,1726744244706,-500.0,0.00016438,2]
[338577983,1726744244715,-1666.85,0.00016438,2]
[338577984,1726744244734,-500.0,0.00016438,2]
[338577985,1726744244744,-717.92,0.00016438,2]
[338577986,1726744244754,-500.0,0.00016438,2]
[338577987,1726744244763,-886.29,0.00016438,2]
[338577988,1726744244773,-1022.46,0.00016438,2]
[338577989,1726744244783,-1269.85,0.00016438,2]
[338577990,1726744244792,-1007.6,0.00016438,2]
[338577991,1726744244801,-500.0,0.00016438,2]
[338577992,1726744244811,-823.59,0.00016438,2]
[338577993,1726744244820,-500.0,0.00016438,2]
[338577994,1726744244829,-522.24562387,0.00016438,2]
[338577995,1726744244838,-500.0,0.00016438,2]
[338577996,1726744244848,-500.0,0.00016438,2]
[338577997,1726744244857,-672.98,0.00016438,2]
[338577998,1726744244867,-500.0,0.00016438,2]
[338577999,1726744244876,-672.98,0.00016438,2]
[338578000,1726744244886,-672.98,0.00016438,2]
[338578001,1726744244895,-672.98,0.00016438,2]
[338578002,1726744244906,-672.98,0.00016438,2]
[338578003,1726744244915,-672.98,0.00016438,2]
[338578004,1726744244925,-672.98,0.00016438,2]
[338578005,1726744244934,-500.0,0.00016438,2]
[338578006,1726744244943,-672.98,0.00016438,2]
[338578007,1726744244953,-672.98,0.00016438,2]
[338578008,1726744244962,-672.98,0.00016438,2]
[338578009,1726744244974,-561.86,0.00016438,2]
[338578010,1726744244983,-672.98,0.00016438,2]
[338578011,1726744244993,-672.98,0.00016438,2]
[338578012,1726744245003,-500.0,0.00016438,2]
[338578013,1726744245012,-672.98,0.00016438,2]
[338578014,1726744245021,-672.98,0.00016438,2]
[338578015,1726744245032,-672.98,0.00016438,2]
[338578016,1726744245042,-672.98,0.00016438,2]
[338578017,1726744245052,-672.98,0.00016438,2]
[338578018,1726744245061,-672.98,0.00016438,2]
[338578019,1726744245070,-672.98,0.00016438,2]
[338578020,1726744245080,-672.98,0.00016438,2]
[338578021,1726744245089,-672.98,0.00016438,2]
[338578022,1726744245099,-672.98,0.00016438,2]
[338578023,1726744245109,-672.98,0.00016438,2]
[338578024,1726744245118,-673.13687186,0.00016438,2]
[338578025,1726744245133,-500.0,0.00016438,2]
[338578026,1726744245142,-500.0,0.00016438,2]
[338578027,1726744245151,-500.0,0.00016438,2]
[338578028,1726744245161,-3986.15,0.00016438,2]
[338578029,1726744245171,-500.0,0.00016438,2]
[338578030,1726744245180,-500.0,0.00016438,2]
[338578031,1726744245190,-500.0,0.00016438,2]
[338578032,1726744245200,-913.35,0.00016438,2]
[338578033,1726744245210,-485.23933606,0.00016438,2]
[338578034,1726744245222,-500.0,0.00016438,2]
[338578035,1726744245231,-900.95,0.00016438,2]
[338578036,1726744245241,-798.22,0.00016438,2]
[338578037,1726744245250,-500.0,0.00016438,2]
[338578038,1726744245260,-500.0,0.00016438,2]
[338578039,1726744245269,-514.02591287,0.00016438,2]
[338578040,1726744245279,-500.0,0.00016438,2]
[338578041,1726744245289,-501.09,0.00016438,2]
[338578042,1726744245298,-500.0,0.00016438,2]
[338578043,1726744245308,-500.0,0.00016438,2]
[338578044,1726744245318,-500.0,0.00016438,2]
[338578045,1726744245328,-500.0,0.00016438,2]
[338578046,1726744245338,-508.75,0.00016438,2]
[338578047,1726744245347,-500.0,0.00016438,2]
[338578048,1726744245357,-500.0,0.00016438,2]
[338578049,1726744245367,-500.0,0.00016438,2]
[338578050,1726744245377,-920.98,0.00016438,2]
[338578051,1726744245387,-616.62,0.00016438,2]
[338578052,1726744245396,-500.0,0.00016438,2]
[338578053,1726744245406,-863.47,0.00016438,2]
[338578054,1726744245417,-500.0,0.00016438,2]
[338578055,1726744245426,-500.0,0.00016438,2]
[338578056,1726744245436,-546.12,0.00016438,2]
[338578057,1726744245446,-653.4,0.00016438,2]
[338578058,1726744245457,-947.31,0.00016438,2]
[338578059,1726744245468,-1567.4,0.00016438,2]
[338578060,1726744245477,-500.0,0.00016438,2]
[338578061,1726744245488,-500.0,0.00016438,2]
[338578062,1726744245498,-798.81,0.00016438,2]
[338578063,1726744245508,-500.0,0.00016438,2]
[338578064,1726744245518,-500.0,0.00016438,2]
[338578065,1726744245528,-500.0,0.00016438,2]
[338578067,1726744245537,-500.0,0.00016438,2]
[338578068,1726744245547,-500.0,0.00016438,2]
[338578069,1726744245557,-500.0,0.00016438,2]
[338578070,1726744245568,-858.77,0.00016438,2]
[338578071,1726744245577,-778.1,0.00016438,2]
[338578072,1726744245586,-500.0,0.00016438,2]
[338578073,1726744245596,-517.93,0.00016438,2]
[338578074,1726744245606,-500.0,0.00016438,2]
[338578075,1726744245615,-500.0,0.00016438,2]
[338578076,1726744245624,-500.0,0.00016438,2]
[338578077,1726744245634,-500.0,0.00016438,2]
[338578078,1726744245645,-500.0,0.00016438,2]
[338578079,1726744245657,-500.0,0.00016438,2]
[338578080,1726744245667,-500.0,0.00016438,2]
[338578081,1726744245676,-500.0,0.00016438,2]
[338578082,1726744245685,-500.0,0.00016438,2]
[338578083,1726744245695,-500.0,0.00016438,2]
[338578084,1726744245704,-512.62,0.00016438,2]
[338578085,1726744245716,-500.0,0.00016438,2]
[338578086,1726744245727,-500.0,0.00016438,2]
[338578087,1726744245737,-500.0,0.00016438,2]
[338578088,1726744245747,-500.0,0.00016438,2]
[338578089,1726744245757,-500.0,0.00016438,2]
[338578090,1726744245767,-581.94,0.00016438,2]
[338578091,1726744245778,-500.0,0.00016438,2]
[338578092,1726744245788,-605.22271873,0.00016438,2]
[338578093,1726744245798,-500.0,0.00016438,2]
[338578094,1726744245808,-841.68,0.00016438,2]
[338578096,1726744245818,-662.01,0.00016438,2]
[338578098,1726744245829,-500.32995546,0.00016438,2]
[338578100,1726744245840,-1148.0,0.00016438,2]
[338578102,1726744245851,-500.0,0.00016438,2]
[338578103,1726744245860,-500.0,0.00016438,2]
[338578105,1726744245870,-500.0,0.00016438,2]
[338578107,1726744245880,-500.0,0.00016438,2]
[338578109,1726744245889,-500.44329615,0.00016438,2]
[338578110,1726744245899,-500.0,0.00016438,2]
[338578111,1726744245908,-500.0,0.00016438,2]
[338578112,1726744245919,-500.0,0.00016438,2]
[338578113,1726744245929,-500.0,0.00016438,2]
[338578114,1726744245939,-500.0,0.00016438,2]
[338578115,1726744245948,-500.0,0.00016438,2]
[338578116,1726744245958,-500.0,0.00016438,2]
[338578117,1726744245968,-500.0,0.00016438,2]
[338578118,1726744245978,-1268.58,0.00016438,2]
[338578119,1726744245989,-500.0,0.00016438,2]
[338578121,1726744246000,-500.0,0.00016438,2]
[338578123,1726744246011,-1389.26,0.00016438,2]
[338578125,1726744246022,-500.0,0.00016438,2]
[338578126,1726744246033,-946.63,0.00016438,2]
[338578128,1726744246043,-500.0,0.00016438,2]
[338578130,1726744246053,-500.0,0.00016438,2]
[338578132,1726744246064,-500.0,0.00016438,2]
[338578133,1726744246074,-500.0,0.00016438,2]
[338578135,1726744246084,-500.0,0.00016438,2]
[338578137,1726744246094,-500.0,0.00016438,2]
[338578139,1726744246104,-500.0,0.00016438,2]
[338578140,1726744246114,-500.0,0.00016438,2]
[338578142,1726744246126,-737.95,0.00016438,2]
[338578144,1726744246137,-500.0,0.00016438,2]
[338578146,1726744246147,-500.0,0.00016438,2]
[338578147,1726744246157,-780.42,0.00016438,2]
[338578149,1726744246167,-894.77,0.00016438,2]
[338578151,1726744246177,-500.0,0.00016438,2]
[338578152,1726744246186,-500.0,0.00016438,2]
[338578153,1726744246197,-5634.28771677,0.00016438,2]
[338578154,1726744246294,-56327.46228323,0.00016438,2]
[338578155,1726744246304,-500.0,0.00016438,2]
[338578156,1726744246314,-500.0,0.00016438,2]
[338578157,1726744246324,-783.6,0.00016438,2]
[338578158,1726744246334,-500.0,0.00016438,2]
[338578159,1726744246344,-500.0,0.00016438,2]
[338578160,1726744246354,-187.45387736,0.00016473,2]
[338578161,1726744246365,-500.0,0.00016473,2]
[338578162,1726744246375,-500.0,0.00016473,2]
[338578163,1726744246385,-500.0,0.00016473,2]
[338578164,1726744246395,-500.0,0.00016473,2]
[338578165,1726744246404,-500.0,0.00016473,2]
[338578166,1726744246414,-500.0,0.00016473,2]
[338578167,1726744246424,-500.0,0.00016473,2]
[338578168,1726744246434,-376.33625533,0.00016473,2]
[338578169,1726744246443,-500.0,0.00016473,2]
[338578170,1726744246452,-500.0,0.00016473,2]
[338578171,1726744246461,-500.0,0.00016473,2]
[338578172,1726744246527,-150.0,0.00016497,2]
[338578173,1726744246536,-6061.47361659,0.00016631,2]
[338578174,1726744246545,-8801.81576445,0.00016712,5]
[338578175,1726744246554,-506.42098458,0.00016712,2]
[338578176,1726744246564,-500.0,0.00016712,2]
[338578177,1726744246573,-500.0,0.00016712,2]
[338578178,1726744246583,-500.0,0.00016712,2]
[338578179,1726744246592,-399.15375636,0.00016712,2]
[338578180,1726744246602,-501.02762435,0.00016712,2]
[338578181,1726744246611,-500.0,0.00016712,2]
[338578182,1726744246621,-564.40204833,0.00016712,2]
[338578183,1726744246631,-500.0,0.00016712,2]
[338578184,1726744246640,-500.0,0.00016712,2]
[338578185,1726744246650,-500.0,0.00016712,2]
[338578186,1726744246658,-500.0,0.00016712,2]
[338578187,1726744246668,-657.74,0.00016712,2]
[338578188,1726744246677,-948.32,0.00016712,2]
[338578189,1726744246686,-500.0,0.00016712,2]
[338578190,1726744246695,-500.0,0.00016712,2]
[338578191,1726744246705,-500.0,0.00016712,2]
[338578192,1726744246714,-954.44,0.00016712,2]
[338578193,1726744246725,-500.0,0.00016712,2]